Workbook

Sheet титул
B2: Согласовано | K2: Утверждаю
B3: Начальник управления образования | K3: Директор МБОУ "Пушкинский пролицей №78"
B5: _____________________ Р.Н.Хузин | K5: _______________ Г.И.Гарипова
A10: Комплектование
A11: на 2023-24 учебный год
A12: Муниципального бюджетного общеобразовательного учреждения города Набережные Челны
A13: "Пушкинский пролицей № 78 "
B29: Согласовано | D29: Л.В.Золотарева
D30: С.Р.Мулюкова

Sheet компл кл
A2: Комплектование классов на 2023-2024 учебный год (на 1 сентября 2023 года)
A3: по учреждению МБОУ "Пушкинский пролицей № 78"
A5: Класс | B5: Количество обучающихся всего | D5: в том числе по программам обучения | N5: в том числе количество учеников на домашнем обучении | P5: язык обучения
D6: Общеобразовательные | F6: Естественно-научные | H6: Гуманитарные | J6: Технические | L6: Социально-экономические
B7: 2022-23 | C7: 2023-24 | D7: 2022-23 | E7: 2023-24 | F7: 2022-23 | G7: 2023-24 | H7: 2022-23 | I7: 2023-24 | J7: 2022-23 | K7: 2023-24 | L7: 2022-23 | M7: 2023-24 | N7: 2022-23 | O7: 2023-24 | P7: 2023-24
A8: 1а | B8: 26 | C8: 31 | D8: 0 | E8: 0 | F8: 0 | G8: 0 | H8: 26 | I8: 31 | J8: 0 | K8: 0 | L8: 0 | M8: 0 | N8: 0 | O8: 0
A9: 1б | B9: 30 | C9: 30 | D9: 0 | E9: 0 | F9: 0 | G9: 0 | H9: 30 | I9: 30 | J9: 0 | K9: 0 | L9: 0 | M9: 0 | N9: 0 | O9: 0
A10: 1в | B10: 29 | C10: 30 | D10: 0 | E10: 0 | F10: 0 | G10: 0 | H10: 29 | I10: 30 | J10: 0 | K10: 0 | L10: 0 | M10: 0 | N10: 0 | O10: 0
A11: 1г | B11: 28 | C11: 29 | D11: 0 | E11: 0 | F11: 0 | G11: 0 | H11: 28 | I11: 29 | J11: 0 | K11: 0 | L11: 0 | M11: 0 | N11: 0 | O11: 0
A12: 1д | B12: 29 | C12: 30 | D12: 0 | E12: 0 | F12: 0 | G12: 0 | H12: 29 | I12: 30 | J12: 0 | K12: 0 | L12: 0 | M12: 0 | N12: 0 | O12: 0
A13: 1е | B13: 26 | C13: 31 | D13: 0 | E13: 0 | F13: 0 | G13: 0 | H13: 26 | I13: 31 | J13: 0 | K13: 0 | L13: 0 | M13: 0 | N13: 0 | O13: 0
A14: итого по 1 классам | B14: =SUM(B8:B13) -> 168 | C14: =SUM(C8:C13) -> 181 | D14: 0 | E14: 0 | F14: 0 | G14: 0 | H14: 168 | I14: =SUM(I8:I13) -> 181 | J14: 0 | K14: 0 | L14: 0 | M14: 0 | N14: 0 | O14: 0 | P14: 0
A15: 2а | B15: 27 | C15: 26 | D15: 0 | E15: 0 | F15: 0 | G15: 0 | H15: 27 | I15: 26 | J15: 0 | K15: 0 | L15: 0 | M15: 0 | N15: 0
A16: 2б | B16: 30 | C16: 27 | D16: 0 | E16: 0 | F16: 0 | G16: 0 | H16: 30 | I16: 27 | J16: 0 | K16: 0 | L16: 0 | M16: 0 | N16: 0 | O16: 0
A17: 2в | B17: 30 | C17: 25 | D17: 0 | E17: 0 | F17: 0 | G17: 0 | H17: 30 | I17: 25 | J17: 0 | K17: 0 | L17: 0 | M17: 0 | N17: 0 | O17: 0
A18: 2г | B18: 30 | C18: 26 | D18: 0 | E18: 0 | F18: 0 | G18: 0 | H18: 30 | I18: 26 | J18: 0 | K18: 0 | L18: 0 | M18: 0 | N18: 0 | O18: 0
A19: 2д | B19: 28 | C19: 27 | D19: 0 | E19: 0 | F19: 0 | G19: 0 | H19: 28 | I19: 27 | J19: 0 | K19: 0 | L19: 0 | M19: 0 | N19: 0 | O19: 0
A20: 2е | B20: 0 | C20: 26 | D20: 0 | E20: 0 | F20: 0 | G20: 0 | H20: 0 | I20: 26 | J20: 0 | K20: 0 | L20: 0 | M20: 0 | N20: 0 | O20: 0
A21: итого по 2 классам | B21: =SUM(B15:B20) -> 145 | C21: =SUM(C15:C20) -> 157 | D21: 0 | E21: 0 | F21: 0 | G21: 0 | H21: 145 | I21: =SUM(I15:I20) -> 157 | J21: 0 | K21: 0 | L21: 0 | M21: 0 | N21: 0 | O21: 0 | P21: 0
A22: 3а | B22: 26 | C22: 27 | D22: 0 | E22: 0 | F22: 0 | G22: 0 | H22: 26 | I22: 27 | J22: 0 | K22: 0 | L22: 0 | M22: 0 | N22: 0 | O22: 0
A23: 3б | B23: 33 | C23: 30 | D23: 0 | E23: 0 | F23: 0 | G23: 0 | H23: 33 | I23: 30 | J23: 0 | K23: 0 | L23: 0 | M23: 0 | N23: 0 | O23: 0
A24: 3в | B24: 30 | C24: 30 | D24: 0 | E24: 0 | F24: 0 | G24: 0 | H24: 30 | I24: 30 | J24: 0 | K24: 0 | L24: 0 | M24: 0 | N24: 0 | O24: 0
A25: 3г | B25: 29 | C25: 31 | D25: 0 | E25: 0 | F25: 0 | G25: 0 | H25: 29 | I25: 31 | J25: 0 | K25: 0 | L25: 0 | M25: 0 | N25: 0 | O25: 0
A26: 3д | B26: 27 | C26: 29 | D26: 0 | E26: 0 | F26: 0 | G26: 0 | H26: 27 | I26: 29 | J26: 0 | K26: 0 | L26: 0 | M26: 0 | N26: 0 | O26: 0
A27: 3е | B27: 32 | C27: 0 | D27: 0 | E27: 0 | F27: 0 | G27: 0 | H27: 32 | I27: 0 | J27: 0 | K27: 0 | L27: 0 | M27: 0 | N27: 0 | O27: 0
A28: итого по 3 классам | B28: =SUM(B22:B27) -> 177 | C28: =SUM(C22:C27) -> 147 | D28: 0 | E28: 0 | F28: 0 | G28: 0 | H28: 177 | I28: =SUM(I22:I27) -> 147 | J28: 0 | K28: 0 | L28: 0 | M28: 0 | N28: 0 | O28: 0 | P28: 0
A29: 4а | B29: 28 | C29: 25 | D29: 0 | E29: 0 | F29: 0 | G29: 0 | H29: 28 | I29: 25 | J29: 0 | K29: 0 | L29: 0 | M29: 0 | N29: 0 | O29: 0
A30: 4б | B30: 28 | C30: 31 | D30: 0 | E30: 0 | F30: 0 | G30: 0 | H30: 28 | I30: 31 | J30: 0 | K30: 0 | L30: 0 | M30: 0 | N30: 0 | O30: 0
A31: 4в | B31: 27 | C31: 27 | D31: 0 | E31: 0 | F31: 0 | G31: 0 | H31: 27 | I31: 27 | J31: 0 | K31: 0 | L31: 0 | M31: 0 | N31: 0 | O31: 0
A32: 4г | B32: 27 | C32: 27 | D32: 0 | E32: 0 | F32: 0 | G32: 0 | H32: 27 | I32: 27 | J32: 0 | K32: 0 | L32: 0 | M32: 0 | N32: 0 | O32: 0
A33: 4д | B33: 27 | C33: 25 | D33: 0 | E33: 0 | F33: 0 | G33: 0 | H33: 27 | I33: 25 | J33: 0 | K33: 0 | L33: 0 | M33: 0 | N33: 0 | O33: 0
A34: 4е | B34: 27 | C34: 30 | D34: 0 | E34: 0 | F34: 0 | G34: 0 | H34: 27 | I34: 30 | J34: 0 | K34: 0 | L34: 0 | M34: 0 | N34: 0 | O34: 0
A35: итого по 4 классам | B35: =SUM(B29:B34) -> 164 | C35: =SUM(C29:C34) -> 165 | D35: 0 | E35: 0 | F35: 0 | G35: 0 | H35: 164 | I35: =SUM(I29:I34) -> 165 | J35: 0 | K35: 0 | L35: 0 | M35: 0 | N35: 0 | O35: 0 | P35: 0
A36: итого по 1-11 классам | B36: =B14+B21+B28+B35 -> 654 | C36: =C14+C21+C28+C35 -> 650 | F36: =F14+F21+F28+F35 -> 0 | G36: =G14+G21+G28+G35 -> 0 | H36: =H14+H21+H28+H35 -> 654 | I36: =I14+I21+I28+I35 -> 650 | J36: =J14+J21+J28+J35 -> 0 | K36: 0 | L36: =L14+L21+L28+L35 -> 0 | M36: 0 | N36: =N14+N21+N28+N35 -> 0 | O36: =O14+O21+O28+O35 -> 0
A39: Директор МБОУ "Пушкинский пролицей № 78 " | G39: ______________ | I39: Г.И.Гарипова

Sheet свод
A2: Комплектование классов на 2023-2024 учебный год (на 1 сентября 2023 года)
A3: по учреждению МБОУ "Пушкинский пролицей № 78"
A5: Паралель | B5: комплектование классов | H5: комплектование групп дополнительного образования (кружковая работа) | N5: комплектование групп продленного дня
B6: кол-во классов | D6: кол-во уч-ся | F6: наполняемость | H6: кол-во групп | J6: кол-во уч-ся | L6: наполняемость | N6: кол-во групп | P6: кол-во уч-ся | R6: наполняемость
B7: 2022-23 | C7: 2023-24 | D7: 2022-23 | E7: 2023-24 | F7: 2022-23 | G7: 2023-24 | H7: 2022-23 | I7: 2023-24 | J7: 2022-23 | K7: 2023-24 | L7: 2022-23 | M7: 2023-24 | N7: 2022-23 | O7: 2023-24 | P7: 2022-23 | Q7: 2023-24 | R7: 2022-23 | S7: 2023-24
A8: 1 | B8: 6 | C8: 6 | D8: 168 | E8: 181 | F8: =D8/B8 -> 28.0 | G8: =E8/C8 -> 30.2 | H8: 8 | I8: 8 | J8: 114 | K8: 123 | L8: =J8/H8 -> 14.3 | M8: =K8/I8 -> 15.4 | N8: 6 | O8: 6 | P8: 168 | Q8: 181 | R8: =P8/N8 -> 28.0 | S8: =Q8/O8 -> 30.2
A9: 2 | B9: 5 | C9: 6 | D9: 145 | E9: 157 | F9: =D9/B9 -> 29.0 | G9: 26.2 | H9: 7 | I9: 7 | J9: 99 | K9: 107 | L9: =J9/H9 -> 14.1 | M9: 15.3 | N9: 5 | O9: 6 | P9: 145 | Q9: 157 | R9: =P9/N9 -> 29.0 | S9: 26.2
A10: 3 | B10: 6 | C10: 5 | D10: 177 | E10: 147 | F10: 29.5 | G10: 29.4 | H10: 8 | I10: 7 | J10: 120 | K10: 100 | L10: 15.0 | M10: 14.3 | N10: 6 | O10: 5 | P10: 177 | Q10: 147 | R10: 29.5 | S10: 29.4
A11: 4 | B11: 6 | C11: 6 | D11: 164 | E11: 165 | F11: 27.3 | G11: 27.5 | H11: 7 | I11: 7 | J11: 111 | K11: 112 | L11: 15.9 | M11: 16.0 | N11: 6 | O11: 6 | P11: 164 | Q11: 165 | R11: 27.3 | S11: 27.5
A12: 1-4 классы | B12: =B8+B9+B10+B11 -> 23 | C12: =C8+C9+C10+C11 -> 23 | D12: 654 | E12: =E8+E9+E10+E11 -> 650 | F12: 28.4 | G12: 28.3 | H12: =H8+H9+H10+H11 -> 30 | I12: =I8+I9+I10+I11 -> 29 | J12: 444 | K12: =K8+K9+K10+K11 -> 442 | L12: =J12/H12 -> 14.8 | M12: 15.2 | N12: 23 | O12: 23 | P12: =P8+P9+P10+P11 -> 654 | Q12: =Q8+Q9+Q10+Q11 -> 650 | R12: 28.4 | S12: 28.3
A13: 5
A14: 6
A15: 7
A16: 8
A17: 9
A18: 5-9 классы
A19: 10
A20: 11
A21: 10-11 классы
A22: 1-11 классы | B22: =B12+B18+B21 -> 23 | C22: =C12+C18+C21 -> 23 | D22: 654 | E22: =E12+E18+E21 -> 650 | F22: 28.3 | G22: 27.3 | H22: =H12+H18+H21 -> 30 | I22: 29 | J22: =J12+J18+J21 -> 444 | K22: =K12+K18+K21 -> 442 | L22: =J22/H22 -> 14.8 | M22: 15.2 | P22: =P12+P18+P21 -> 654 | Q22: 650 | R22: =R12+R18+R21 -> 28.4 | S22: 28.3
A25: Директор МБОУ "Пушкинский пролицей № 78 " | G25: ______________ | I25: Г.И.Гарипова

Sheet родн яз
A2: Комплектование групп родного языка
A3: по учреждению МБОУ "Пушкинский пролицей № 78"
A5: Паралель | B5: родной язык (татарский) | F5: родной язык (русский) | J5: Итого
B6: кол-во уч-ся | C6: кол-во групп | D6: кол-во часов | E6: средняя наполняемость | F6: кол-во уч-ся | G6: кол-во групп | H6: кол-во часов | I6: средняя наполняемость | J6: кол-во уч-ся | K6: кол-во групп | L6: кол-во часов
A7: 1 | B7: 130 | C7: 7 | D7: 14 | E7: =B7/C7 -> 18.6 | F7: 51 | G7: 5 | H7: 10 | I7: =F7/G7 -> 10.2 | J7: =B7+F7 -> 181 | K7: =C7+G7 -> 12 | L7: =D7+H7 -> 24
A8: 2 | B8: 102 | C8: 7 | D8: 21 | E8: =B8/C8 -> 14.6 | F8: 55 | G8: 5 | H8: 15 | I8: =F8/G8 -> 11.0 | J8: =B8+F8 -> 157 | K8: =C8+G8 -> 12 | L8: =D8+H8 -> 36
A9: 3 | B9: 100 | C9: 6 | D9: 18 | E9: 16.7 | F9: 47 | G9: 5 | H9: 15 | I9: 9.4 | J9: 147 | K9: 11 | L9: 33
A10: 4 | B10: 102 | C10: 7 | D10: 21 | E10: 14.6 | F10: 63 | G10: 5 | H10: 15 | I10: 12.6 | J10: 165 | K10: 12 | L10: 36
A11: 1-4 классы | B11: =B7+B8+B9+B10 -> 434 | C11: 27 | D11: 74 | E11: 16.1 | F11: =F7+F8+F9+F10 -> 216 | G11: =G7+G8+G9+G10 -> 20 | H11: =H7+H8+H9+H10 -> 55 | I11: 10.8 | J11: =J7+J8+J9+J10 -> 650 | K11: 47 | L11: 129
A12: 5
A13: 6
A14: 7
A15: 8
A16: 9
A17: 5-9 классы
A18: 10
A19: 11
A20: 10-11 классы
A21: 1-11 классы | B21: =B11+B17+B20 -> 434 | C21: =C11+C17+C20 -> 27 | D21: 74 | E21: 16.1 | F21: 216.00 | G21: 20 | H21: 55 | I21: 10.8 | J21: 650 | K21: 47 | L21: 129
A24: Директор МБОУ "Пушкинский пролицей № 78 " | G24: ______________ | I24: Г.И.Гарипова

Sheet кружки
A2: Распределение часов дополнительного образования на 2023-24 учебный год
A4: Паралель | B4: комплектование групп дополнительного образования (кружковая работа) | E4: в том числе по направлениям
E5: техническое | G5: художественно-эстетическое | I5: военно-патриотическое | K5: социально-педагогическое, социально-экономическое | M5: естественно научное | O5: физкультурно спортивное | Q5: эколого-биологическое | S5: туристически краеведческое
B6: кол-во групп | C6: кол-во уч-ся | D6: наполняемость | E6: кол-во групп | F6: кол-во уч-ся | G6: кол-во групп | H6: кол-во уч-ся | I6: кол-во групп | J6: кол-во уч-ся | K6: кол-во групп | L6: кол-во уч-ся | M6: кол-во групп | N6: кол-во уч-ся | O6: кол-во групп | P6: кол-во уч-ся | Q6: кол-во групп | R6: кол-во уч-ся | S6: кол-во групп | T6: кол-во уч-ся
A7: 1 | B7: 8 | C7: 123 | D7: =C7/B7 -> 15.4 | E7: 1 | F7: 15 | G7: 2 | H7: 30 | K7: 2 | L7: 30 | M7: 1 | N7: 15 | O7: 1 | P7: 15 | S7: 1 | T7: 15
A8: 2 | B8: 7 | C8: 107 | D8: 15.3 | E8: 1 | F8: 15 | G8: 2 | H8: 30 | K8: 2 | L8: 31 | M8: 1 | N8: 16 | Q8: 1 | R8: 15
A9: 3 | B9: 7 | C9: 100 | D9: 14.3 | E9: 3 | F9: 45 | G9: 1 | H9: 15 | I9: 1 | J9: 17 | M9: 1 | N9: 15 | O9: 1 | P9: 16
A10: 4 | B10: 7 | C10: 112 | D10: 16.0 | E10: 1 | F10: 15 | G10: 1 | H10: 15 | I10: 1 | J10: 17 | K10: 2 | L10: 30 | M10: 1 | N10: 15 | O10: 1 | P10: 15
A11: 1-4 классы | B11: =B7+B8+B9+B10 -> 29 | C11: 442 | D11: 15.2 | E11: =E7+E8+E9+E10 -> 6 | F11: =F7+F8+F9+F10 -> 90 | G11: 6 | H11: 90 | I11: 2 | J11: 34 | K11: 6 | L11: 91 | M11: 4 | N11: 61 | O11: 3 | P11: 46 | Q11: 1 | R11: 15 | S11: 1 | T11: 15
A12: 5
A13: 6
A14: 7
A15: 8
A16: 9
A17: 5-9 классы
A18: 10
A19: 11
A20: 10-11 классы
A21: 1-11 классы | B21: =B11+B17+B20 -> 29 | C21: 442 | D21: =C21/B21 -> 15.2 | E21: =E11+E17+E20 -> 6 | F21: =F11+F17+F20 -> 90 | G21: 6 | H21: 90 | I21: 2 | J21: 34 | K21: 6 | L21: 91 | M21: 4 | N21: 61 | O21: 3 | P21: 46 | Q21: 1 | R21: 15 | S21: 1 | T21: 15
A24: Директор МБОУ "Пушкинский пролицей № 78 " | G24: ______________ | I24: Г.И.Гарипова

Sheet часы внеуроч
A2: Информация о часах внеурочной работы на 2023-2024 учебный год по МБОУ "Пушкинский пролицей №78
A4: Класс | B4: Кол-во часов | C4: Наименование кружка | D4: Направление | E4: Ф.И.О.педагога | F4: Основное место работы | G4: Образование | H4: Должность
A5: 3-4 | B5: 2 | C5: "Музейное дело" | D5: военно-патриотическое | E5: Устян Ш.С. | F5: МБОУ «Пушкинский пролицей №78» | G5: высшее | H5: Учитель музыки
A6: 3-4 | B6: 2 | C6: “Сәхнә көзгесе” | D6: художественно-эстетическое | E6: Мухаммадиева С.М. | F6: МБОУ «Пушкинский пролицей №78» | G6: высшее | H6: Учитель татарского языка
A7: 3-4 | B7: 8 | C7: «Веселый мяч» | D7: физкультурно-спортивное | E7: Чупис В.С. | F7: МБОУ «Пушкинский пролицей №78» | G7: высшее | H7: Учитель физ.культуры
A8: 1-4 | B8: 2 | C8: «Хор» | D8: художественно-эстетическое | E8: Устян Ш.С. | F8: МБОУ «Пушкинский пролицей №78» | G8: высшее | H8: Учитель музыки
A9: 1-4 | B9: 6 | C9: "Робототехника" | D9: техническое | E9: Мухаметов А.Г. | F9: МБОУ «Пушкинский пролицей №78» | G9: высшее | H9: учитель дополнительного образования
A10: 1 | B10: 2 | C10: «Английский язык: первые шаги» | D10: социально-педагогическое | E10: Мамедова А.Р. | F10: МБОУ «Пушкинский пролицей №78» | G10: высшее | H10: Учитель английского языка
A11: 1 | B11: 2 | C11: «Английский язык: первые шаги» | D11: социально-педагогическое | E11: Петрова Л.А. | F11: МБОУ «Пушкинский пролицей №78» | G11: высшее | H11: Учитель английского языка
A12: 1 | B12: 1 | C12: "Любознательный читатель" | D12: художественно-эстетическое | E12: Егорова Л.М. | F12: МБОУ «Пушкинский пролицей №78» | H12: библиотекарь
A13: 4 | B13: 2 | C13: "Английский театр" | D13: художественно-эстетическое | E13: Банникова Н.И. | F13: МБОУ «Пушкинский пролицей №78» | G13: первая | H13: Учитель английского языка
A14: 1 | B14: 1 | C14: "Дорога без опасностей" | D14: социально-педагогическое | E14: Сычева О.В. | F14: МБОУ «Пушкинский пролицей №78» | G14: перавая | H14: Учитель начальных классов
A15: 1 | B15: 1 | C15: "Мир во мне " | D15: художественно-эстетическое | E15: Зеленина И.М. | F15: МБОУ «Пушкинский пролицей №78» | G15: первая | H15: Учитель начальных классов
A16: 1 | B16: 2 | C16: «Английский язык: первые шаги» | D16: социально-педагогическое | E16: Банникова Н.И. | F16: МБОУ «Пушкинский пролицей №78» | G16: высшее | H16: Учитель английского языка
A17: 4 | B17: 1 | C17: Конструктор собственной образовательной среды | D17: социально-педагогическое | E17: Аксёнова Д.А. | F17: МБОУ «Пушкинский пролицей №78» | G17: первая | H17: Учитель начальных классов
A18: 4 | B18: 1 | C18: Конструктор собственной образовательной среды | D18: социально-педагогическое | E18: Забирова А.И. | F18: МБОУ «Пушкинский пролицей №78» | G18: высшее | H18: МБОУ «Пушкинский пролицей №78»
A19: 4 | B19: 1 | C19: Конструктор собственной образовательной среды | D19: социально-педагогическое | E19: Радаева Н.Ю. | F19: МБОУ «Пушкинский пролицей №78» | G19: высшее | H19: Учитель начальных классов
A20: 4 | B20: 1 | C20: Конструктор собственной образовательной среды | D20: социально-педагогическое | E20: Лубашева И.В. | F20: МБОУ «Пушкинский пролицей №78» | G20: высшее | H20: Учитель начальных классов
A21: 3 | B21: 1 | C21: Конструктор собственной образовательной среды | D21: социально-педагогическое | E21: Яковлева Н.В. | F21: МБОУ «Пушкинский пролицей №78» | G21: высшее | H21: Учитель начальных классов
A22: 4 | B22: 1 | C22: Конструктор собственной образовательной среды | D22: социально-педагогическое | E22: Шайдуллина Р.Р. | F22: МБОУ «Пушкинский пролицей №78» | G22: высшее | H22: Учитель начальных классов
A23: 3 | B23: 1 | C23: “Литературный театр” | D23: художественно-эстетическое | E23: Карпова С.И. | F23: МБОУ «Пушкинский пролицей №78» | G23: высшее | H23: Учитель начальных классов
A24: 3 | B24: 1 | C24: “Мир вокруг нас” | D24: эколого-биологическое | E24: Матвеева И.Г. | F24: МБОУ «Пушкинский пролицей №78» | G24: высшее | H24: Учитель начальных классов
A25: 3 | B25: 1 | C25: “Компьютерная грамотность” | D25: техническое | E25: Аскарова Н.В. | F25: МБОУ «Пушкинский пролицей №78» | G25: высшее | H25: Учитель начальных классов
A26: 4 | B26: 1 | C26: Дорога без опасности" | D26: социально-педагогическое | E26: Радаева Н.Ю. | F26: МБОУ «Пушкинский пролицей №78» | G26: высшее | H26: Учитель начальных классов
A27: 4 | B27: 1 | C27: Тимуровцы "Добрые сердца" | D27: социально-педагогическое | E27: Лубашева И.В. | F27: МБОУ «Пушкинский пролицей №78» | G27: высшее | H27: Учитель начальных классов
A28: 3 | B28: 1 | C28: "Вита" | D28: социально-педагогическое | E28: Копысова Я.В. | F28: МБОУ «Пушкинский пролицей №78» | G28: высшее | H28: Учитель начальных классов
A29: 3 | B29: 1 | C29: "Вита" | D29: социально-педагогическое | E29: Краснопёрова Т.Л. | F29: МБОУ «Пушкинский пролицей №78» | G29: высшее | H29: Учитель начальных классов
A30: 3 | B30: 1 | C30: "Вита" | D30: социально-педагогическое | E30: Аскарова Н.В. | F30: МБОУ «Пушкинский пролицей №78» | G30: высшее | H30: Учитель начальных классов
A31: 3 | B31: 1 | C31: "Вита" | D31: социально-педагогическое | E31: Матвеева И.Г. | F31: МБОУ «Пушкинский пролицей №78» | G31: высшее | H31: Учитель начальных классов
A32: 3 | B32: 1 | C32: "Вита" | D32: социально-педагогическое | E32: Карпова С.И. | F32: МБОУ «Пушкинский пролицей №78» | G32: высшее | H32: Учитель начальных классов
A33: 1 | B33: 1 | C33: "Мир во мне" | D33: художественно-эстетическое | E33: Маляренко Н.А. | F33: МБОУ «Пушкинский пролицей №78» | G33: высшее | H33: Учитель начальных классов
A34: 1 | B34: 1 | C34: "Мир во мне" | D34: художественно-эстетическое | E34: Латипова Л.Н. | F34: МБОУ «Пушкинский пролицей №78» | G34: высшее | H34: Учитель начальных классов
A35: 1 | B35: 1 | C35: "Мир во мне" | D35: художественно-эстетическое | E35: Чехун Н.А. | F35: МБОУ «Пушкинский пролицей №78» | G35: высшее | H35: Учитель начальных классов
A36: 1 | B36: 1 | C36: "Мир во мне" | D36: художественно-эстетическое | E36: Устян Ш.С. | F36: МБОУ «Пушкинский пролицей №78» | G36: высшее | H36: Учитель начальных классов
A37: 1 | B37: 1 | C37: "Мир во мне" | D37: художественно-эстетическое | E37: Муктасибова Л.А. | F37: МБОУ «Пушкинский пролицей №78» | G37: высшее | H37: Учитель начальных классов
A38: 1 | B38: 1 | C38: "Мир во мне" | D38: социально-педагогическое | E38: Патенко Г.М. | F38: МБОУ «Пушкинский пролицей №78» | G38: высшее | H38: Учитель начальных классов
A39: 2 | B39: 1 | C39: «Познай себя» | D39: социально-педагогическое | E39: Кокшарова С.А. | F39: МБОУ «Пушкинский пролицей №78» | G39: высшее | H39: Учитель начальных классов
A40: 2 | B40: 1 | C40: «Познай себя» | D40: социально-педагогическое | E40: Шарафутдинова Н.В. | F40: МБОУ «Пушкинский пролицей №78» | G40: высшее | H40: Учитель начальных классов
A41: 2 | B41: 1 | C41: «Познай себя» | D41: социально-педагогическое | E41: Башарова Г.И. | F41: МБОУ «Пушкинский пролицей №78» | G41: высшее | H41: Учитель начальных классов
A42: 2 | B42: 1 | C42: «Познай себя» | D42: социально-педагогическое | E42: Дорженковская Н.Г. | F42: МБОУ «Пушкинский пролицей №78» | G42: высшее | H42: Учитель начальных классов
A43: 2 | B43: 1 | C43: "Позная себя" | D43: социально-педагогическое | E43: Сычева О.В. | F43: МБОУ «Пушкинский пролицей №78» | G43: высшее | H43: Учитель начальных классов
A44: 2 | B44: 1 | C44: "Познай себя" | D44: социально-педагогическое | E44: Салахеева Г.И. | F44: МБОУ «Пушкинский пролицей №78» | G44: высшее | H44: Учитель начальных классов
A45: ИТОГО | B45: =SUM(B5:B44) -> 59
A47: Директор МБОУ "Пушкинский пролицей № 78 "________________ | E47: Г.И.Гарипова
